[Event "Titled Tuesday Blitz July 25 Late 2023"]
[White "Novikova, Margarita"]
[Black "Estrada Nieto, Julian"]
[WhiteFideId "14109689"]
[BlackFideId "5101018"]
[WhiteElo "2187"]
[BlackElo "2453"]
[Result "0-1"]
[Round "10"]
[TimeControl "180+2"]
[Date "2023.07.25"]
[WhiteClock "0:00:04"]
[BlackClock "0:00:15"]
[Board "95"]

1. e4 {[%clk 0:02:59]}  e5 {[%clk 0:02:58]} 2. Nf3 {[%clk 0:02:58]}  Nc6 {[%clk 0:02:58]} 3. Bc4 {[%clk 0:02:57]}  Bc5 {[%clk 0:02:58]} 4. c3 {[%clk 0:02:57]}  Nf6 {[%clk 0:02:56]} 5. d4 {[%clk 0:02:58]}  exd4 {[%clk 0:02:56]} 6. cxd4 {[%clk 0:02:59]}  Bb4+ {[%clk 0:02:57]} 7. Bd2 {[%clk 0:02:59]}  Bxd2+ {[%clk 0:02:57]} 8. Nbxd2 {[%clk 0:03:00]}  d5 {[%clk 0:02:57]} 9. exd5 {[%clk 0:03:01]}  Nxd5 {[%clk 0:02:58]} 10. O-O {[%clk 0:03:01]}  O-O {[%clk 0:02:58]} 11. Rc1 {[%clk 0:03:01]}  Bg4 {[%clk 0:02:57]} 12. h3 {[%clk 0:03:01]}  Bh5 {[%clk 0:02:57]} 13. Qb3 {[%clk 0:03:01]}  Na5 {[%clk 0:02:54]} 14. Qc2 {[%clk 0:02:51]}  Nxc4 {[%clk 0:02:54]} 15. Qxc4 {[%clk 0:02:51]}  c6 {[%clk 0:02:50]} 16. Ne5 {[%clk 0:02:51]}  Nf4 {[%clk 0:02:33]} 17. Ndf3 {[%clk 0:02:42]}  Qd5 {[%clk 0:02:21]} 18. Qxd5 {[%clk 0:02:40]}  Nxd5 {[%clk 0:02:13]} 19. g4 {[%clk 0:02:38]}  Bg6 {[%clk 0:02:14]} 20. Nxg6 {[%clk 0:02:37]}  hxg6 {[%clk 0:02:08]} 21. Ne5 {[%clk 0:02:35]}  g5 {[%clk 0:02:07]} 22. Kh2 {[%clk 0:02:32]}  Rfe8 {[%clk 0:02:06]} 23. a3 {[%clk 0:02:29]}  Rad8 {[%clk 0:02:05]} 24. b4 {[%clk 0:02:28]}  f6 {[%clk 0:02:01]} 25. Nf3 {[%clk 0:02:21]}  Re2 {[%clk 0:02:00]} 26. Kg3 {[%clk 0:02:17]}  a6 {[%clk 0:01:54]} 27. Rfe1 {[%clk 0:02:15]}  Rde8 {[%clk 0:01:49]} 28. Rxe2 {[%clk 0:02:09]}  Rxe2 {[%clk 0:01:49]} 29. Rb1 {[%clk 0:01:58]}  Nc3 {[%clk 0:01:46]} 30. Rf1 {[%clk 0:01:50]}  Ra2 {[%clk 0:01:35]} 31. Re1 {[%clk 0:01:49]}  Ne2+ {[%clk 0:01:28]} 32. Kh2 {[%clk 0:01:42]}  Nf4 {[%clk 0:01:28]} 33. Kg3 {[%clk 0:01:20]}  Kf7 {[%clk 0:01:28]} 34. Re3 {[%clk 0:01:17]}  Nd5 {[%clk 0:01:27]} 35. Rb3 {[%clk 0:01:13]}  Nf4 {[%clk 0:01:23]} 36. h4 {[%clk 0:01:10]}  Ne2+ {[%clk 0:01:22]} 37. Kg2 {[%clk 0:01:09]}  gxh4 {[%clk 0:01:21]} 38. Nxh4 {[%clk 0:01:03]}  Nxd4 {[%clk 0:01:20]} 39. Rd3 {[%clk 0:01:03]}  Ne6 {[%clk 0:01:00]} 40. Rd7+ {[%clk 0:00:59]}  Ke8 {[%clk 0:01:01]} 41. Rxb7 {[%clk 0:00:57]}  Rxa3 {[%clk 0:01:01]} 42. Nf5 {[%clk 0:00:54]}  Nf4+ {[%clk 0:00:59]} 43. Kh2 {[%clk 0:00:51]}  g5 {[%clk 0:00:56]} 44. Nd6+ {[%clk 0:00:44]}  Kd8 {[%clk 0:00:56]} 45. Ne4 {[%clk 0:00:44]}  Nd5 {[%clk 0:00:53]} 46. Nc5 {[%clk 0:00:41]}  Kc8 {[%clk 0:00:48]} 47. Rf7 {[%clk 0:00:30]}  Ra2 {[%clk 0:00:42]} 48. Kg1 {[%clk 0:00:28]}  Nxb4 {[%clk 0:00:38]} 49. Rxf6 {[%clk 0:00:28]}  Rc2 {[%clk 0:00:33]} 50. Nb3 {[%clk 0:00:25]}  c5 {[%clk 0:00:28]} 51. Rf5 {[%clk 0:00:25]}  Nd3 {[%clk 0:00:25]} 52. Rxg5 {[%clk 0:00:24]}  c4 {[%clk 0:00:25]} 53. Nd4 {[%clk 0:00:22]}  Rxf2 {[%clk 0:00:23]} 54. Rg8+ {[%clk 0:00:17]}  Kd7 {[%clk 0:00:22]} 55. g5 {[%clk 0:00:16]}  Rf4 {[%clk 0:00:20]} 56. Nc2 {[%clk 0:00:13]}  Rg4+ {[%clk 0:00:20]} 57. Kf1 {[%clk 0:00:14]}  Ne5 {[%clk 0:00:19]} 58. Ne3 {[%clk 0:00:13]}  Rg3 {[%clk 0:00:18]} 59. Nf5 {[%clk 0:00:11]}  Rf3+ {[%clk 0:00:18]} 60. Ke2 {[%clk 0:00:10]}  Rxf5 {[%clk 0:00:19]} 61. g6 {[%clk 0:00:10]}  Nxg6 {[%clk 0:00:16]} 62. Rg7+ {[%clk 0:00:04]}  Ne7 {[%clk 0:00:15]} 0-1


[Site "https://www.chess.com"]

[Event "Titled Tuesday Blitz July 25 Late 2023"]
[White "Reprintsev, Alexander"]
[Black "Sarkar, Justin"]
[WhiteFideId "14100541"]
[BlackFideId "2010011"]
[WhiteElo "2398"]
[BlackElo "2233"]
[Result "1-0"]
[Round "10"]
[TimeControl "180+2"]
[Date "2023.07.25"]
[WhiteClock "0:01:33"]
[BlackClock "0:00:00"]
[Board "96"]

1. e4 {[%clk 0:02:46]}  c5 {[%clk 0:02:59]} 2. b3 {[%clk 0:02:45]}  Nc6 {[%clk 0:02:58]} 3. Bb2 {[%clk 0:02:45]}  d6 {[%clk 0:02:56]} 4. Bb5 {[%clk 0:02:44]}  Bd7 {[%clk 0:02:51]} 5. Ne2 {[%clk 0:02:43]}  Nf6 {[%clk 0:02:46]} 6. f3 {[%clk 0:02:42]}  e5 {[%clk 0:02:26]} 7. c3 {[%clk 0:02:38]}  Be7 {[%clk 0:02:20]} 8. d4 {[%clk 0:02:37]}  cxd4 {[%clk 0:01:50]} 9. cxd4 {[%clk 0:02:35]}  Qa5+ {[%clk 0:01:41]} 10. Nbc3 {[%clk 0:02:34]}  exd4 {[%clk 0:01:39]} 11. Nxd4 {[%clk 0:02:33]}  Nxd4 {[%clk 0:01:39]} 12. Bxd7+ {[%clk 0:02:32]}  Nxd7 {[%clk 0:01:38]} 13. Qxd4 {[%clk 0:02:33]}  Bf6 {[%clk 0:01:33]} 14. Qd2 {[%clk 0:02:31]}  Rc8 {[%clk 0:01:25]} 15. Nd1 {[%clk 0:02:25]}  Qxd2+ {[%clk 0:00:52]} 16. Kxd2 {[%clk 0:02:24]}  O-O {[%clk 0:00:53]} 17. Bxf6 {[%clk 0:02:22]}  Nxf6 {[%clk 0:00:53]} 18. Ne3 {[%clk 0:02:19]}  Rc6 {[%clk 0:00:13]} 19. Rac1 {[%clk 0:02:17]}  Rfc8 {[%clk 0:00:12]} 20. Rxc6 {[%clk 0:02:16]}  Rxc6 {[%clk 0:00:11]} 21. Rd1 {[%clk 0:02:15]}  Kf8 {[%clk 0:00:09]} 22. Kd3 {[%clk 0:02:13]}  g6 {[%clk 0:00:09]} 23. g4 {[%clk 0:02:13]}  h5 {[%clk 0:00:06]} 24. g5 {[%clk 0:02:13]}  Nd7 {[%clk 0:00:06]} 25. f4 {[%clk 0:02:12]}  Nc5+ {[%clk 0:00:05]} 26. Kd4 {[%clk 0:02:12]}  Ne6+ {[%clk 0:00:05]} 27. Kd3 {[%clk 0:02:07]}  Nxf4+ {[%clk 0:00:04]} 28. Kd2 {[%clk 0:02:07]}  Nh3 {[%clk 0:00:04]} 29. Nc4 {[%clk 0:02:00]}  Nxg5 {[%clk 0:00:03]} 30. Ke3 {[%clk 0:02:00]}  Ke7 {[%clk 0:00:01]} 31. h4 {[%clk 0:01:57]}  Ne6 {[%clk 0:00:01]} 32. a4 {[%clk 0:01:56]}  b6 {[%clk 0:00:01]} 33. Na3 {[%clk 0:01:56]}  Nc5 {[%clk 0:00:01]} 34. Nb5 {[%clk 0:01:50]}  Nxb3 {[%clk 0:00:01]} 35. Nxa7 {[%clk 0:01:49]}  Rc3+ {[%clk 0:00:01]} 36. Kf4 {[%clk 0:01:49]}  Nc5 {[%clk 0:00:01]} 37. Nb5 {[%clk 0:01:47]}  Rc4 {[%clk 0:00:01]} 38. Nxd6 {[%clk 0:01:45]}  Rxa4 {[%clk 0:00:01]} 39. Nc8+ {[%clk 0:01:42]}  Kf8 {[%clk 0:00:01]} 40. Rd8+ {[%clk 0:01:36]}  Kg7 {[%clk 0:00:01]} 41. Re8 {[%clk 0:01:37]}  Ne6+ {[%clk 0:00:01]} 42. Ke5 {[%clk 0:01:33]}  Ra5+ {[%clk 0:00:01]} 43. Kd6 {[%clk 0:01:33]}  Ra4 {[%clk 0:00:01]} 44. Ke5 {[%clk 0:01:32]}  Ra5+ {[%clk 0:00:01]} 45. Kd6 {[%clk 0:01:32]}  Ra4 {[%clk 0:00:01]} 46. e5 {[%clk 0:01:32]}  Rd4+ {[%clk 0:00:00]} 47. Ke7 {[%clk 0:01:33]} 1-0


[Site "https://www.chess.com"]

[Event "Titled Tuesday Blitz July 25 Late 2023"]
[White "Pasti, Aron"]
[Black "Ardila, Oscar Humberto"]
[WhiteFideId "785857"]
[BlackFideId "4404742"]
[WhiteElo "2395"]
[BlackElo "2231"]
[Result "0-1"]
[Round "10"]
[TimeControl "180+2"]
[Date "2023.07.25"]
[WhiteClock "0:00:00"]
[BlackClock "0:00:14"]
[Board "97"]

1. e4 {[%clk 0:03:00]}  e5 {[%clk 0:02:55]} 2. Nf3 {[%clk 0:03:01]}  Nf6 {[%clk 0:02:55]} 3. d4 {[%clk 0:03:02]}  Nxe4 {[%clk 0:02:53]} 4. dxe5 {[%clk 0:03:01]}  d5 {[%clk 0:02:53]} 5. exd6 {[%clk 0:03:00]}  Nxd6 {[%clk 0:02:52]} 6. Be2 {[%clk 0:03:00]}  Be7 {[%clk 0:02:52]} 7. Nc3 {[%clk 0:02:59]}  O-O {[%clk 0:02:52]} 8. O-O {[%clk 0:02:59]}  Bf5 {[%clk 0:02:52]} 9. Bf4 {[%clk 0:02:58]}  Nc6 {[%clk 0:02:51]} 10. Qd2 {[%clk 0:02:57]}  Ne4 {[%clk 0:02:42]} 11. Nxe4 {[%clk 0:02:56]}  Bxe4 {[%clk 0:02:41]} 12. Qc3 {[%clk 0:02:50]}  Bf6 {[%clk 0:02:38]} 13. Qb3 {[%clk 0:02:49]}  Nd4 {[%clk 0:02:31]} 14. Nxd4 {[%clk 0:02:47]}  Qxd4 {[%clk 0:02:31]} 15. c3 {[%clk 0:02:33]}  Qc5 {[%clk 0:02:17]} 16. Be3 {[%clk 0:02:28]}  Qf5 {[%clk 0:02:07]} 17. Rad1 {[%clk 0:02:09]}  Qg6 {[%clk 0:02:06]} 18. f3 {[%clk 0:02:04]}  Bc6 {[%clk 0:02:04]} 19. Bb5 {[%clk 0:01:58]}  Be5 {[%clk 0:01:50]} 20. Bxc6 {[%clk 0:01:54]}  Qxc6 {[%clk 0:01:49]} 21. Qd5 {[%clk 0:01:50]}  Qf6 {[%clk 0:01:41]} 22. f4 {[%clk 0:01:38]}  Bd6 {[%clk 0:01:39]} 23. Qxb7 {[%clk 0:01:37]}  Rab8 {[%clk 0:01:36]} 24. Qxa7 {[%clk 0:01:36]}  Rxb2 {[%clk 0:01:36]} 25. Bd4 {[%clk 0:01:32]}  Qg6 {[%clk 0:01:32]} 26. Rf2 {[%clk 0:01:23]}  Rxf2 {[%clk 0:01:31]} 27. Bxf2 {[%clk 0:01:23]}  Bxf4 {[%clk 0:01:31]} 28. Qd4 {[%clk 0:01:21]}  Bd6 {[%clk 0:01:27]} 29. Qe3 {[%clk 0:01:10]}  Qh5 {[%clk 0:01:24]} 30. Rxd6 {[%clk 0:01:01]}  cxd6 {[%clk 0:01:22]} 31. Qd2 {[%clk 0:00:56]}  d5 {[%clk 0:01:13]} 32. h3 {[%clk 0:00:52]}  Rb8 {[%clk 0:01:06]} 33. Bg3 {[%clk 0:00:48]}  Rb1+ {[%clk 0:01:03]} 34. Kh2 {[%clk 0:00:46]}  Qd1 {[%clk 0:01:03]} 35. Qxd1 {[%clk 0:00:45]}  Rxd1 {[%clk 0:01:03]} 36. Bd6 {[%clk 0:00:44]}  d4 {[%clk 0:00:54]} 37. cxd4 {[%clk 0:00:42]}  Rxd4 {[%clk 0:00:54]} 38. Bc5 {[%clk 0:00:41]}  Rc4 {[%clk 0:00:53]} 39. Be7 {[%clk 0:00:39]}  f5 {[%clk 0:00:52]} 40. a3 {[%clk 0:00:38]}  Kf7 {[%clk 0:00:52]} 41. Bb4 {[%clk 0:00:37]}  Ke6 {[%clk 0:00:52]} 42. Kg3 {[%clk 0:00:31]}  g5 {[%clk 0:00:52]} 43. Bd2 {[%clk 0:00:28]}  h6 {[%clk 0:00:50]} 44. Bb4 {[%clk 0:00:23]}  Kd5 {[%clk 0:00:49]} 45. Bf8 {[%clk 0:00:23]}  Rc6 {[%clk 0:00:46]} 46. Bb4 {[%clk 0:00:20]}  Ke4 {[%clk 0:00:46]} 47. a4 {[%clk 0:00:15]}  Rc4 {[%clk 0:00:45]} 48. Bf8 {[%clk 0:00:15]}  h5 {[%clk 0:00:38]} 49. a5 {[%clk 0:00:12]}  h4+ {[%clk 0:00:36]} 50. Kh2 {[%clk 0:00:12]}  Ra4 {[%clk 0:00:36]} 51. Be7 {[%clk 0:00:11]}  g4 {[%clk 0:00:26]} 52. hxg4 {[%clk 0:00:10]}  fxg4 {[%clk 0:00:26]} 53. Bxh4 {[%clk 0:00:07]}  Rxa5 {[%clk 0:00:26]} 54. Bf2 {[%clk 0:00:07]}  Ra2 {[%clk 0:00:25]} 55. Kg3 {[%clk 0:00:07]}  Kf5 {[%clk 0:00:21]} 56. Bb6 {[%clk 0:00:05]}  Ra3+ {[%clk 0:00:20]} 57. Kf2 {[%clk 0:00:03]}  Rb3 {[%clk 0:00:20]} 58. Bc5 {[%clk 0:00:03]}  Ke4 {[%clk 0:00:21]} 59. Ba7 {[%clk 0:00:01]}  Kf4 {[%clk 0:00:18]} 60. Bc5 {[%clk 0:00:01]}  Rb2+ {[%clk 0:00:17]} 61. Kg1 {[%clk 0:00:01]}  Ke4 {[%clk 0:00:14]} 62. Bd6 {[%clk 0:00:00]}  Rd2 {[%clk 0:00:14]} 0-1


[Site "https://www.chess.com"]

[Event "Titled Tuesday Blitz July 25 Late 2023"]
[White "The_Straightforward_Rook"]
[Black "Lopez Perdomo, Juan David"]
[BlackFideId "4405137"]
[WhiteElo "2384"]
[BlackElo "2218"]
[Result "1-0"]
[Round "10"]
[TimeControl "180+2"]
[Date "2023.07.25"]
[WhiteClock "0:01:28"]
[BlackClock "0:00:00"]
[Board "98"]

1. Nf3 {[%clk 0:02:54]}  e6 {[%clk 0:02:57]} 2. c4 {[%clk 0:02:52]}  d6 {[%clk 0:02:57]} 3. d4 {[%clk 0:02:52]}  Nf6 {[%clk 0:02:56]} 4. Nc3 {[%clk 0:02:52]}  b6 {[%clk 0:02:57]} 5. g3 {[%clk 0:02:50]}  Bb7 {[%clk 0:02:56]} 6. Bg2 {[%clk 0:02:51]}  a6 {[%clk 0:02:56]} 7. O-O {[%clk 0:02:51]}  Be7 {[%clk 0:02:55]} 8. Qc2 {[%clk 0:02:52]}  c5 {[%clk 0:02:48]} 9. d5 {[%clk 0:02:50]}  exd5 {[%clk 0:02:45]} 10. Nh4 {[%clk 0:02:50]}  g6 {[%clk 0:02:22]} 11. Bh6 {[%clk 0:02:49]}  Ng4 {[%clk 0:02:04]} 12. Qd2 {[%clk 0:02:09]}  Bxh4 {[%clk 0:01:38]} 13. gxh4 {[%clk 0:02:10]}  Qxh4 {[%clk 0:01:11]} 14. Bf4 {[%clk 0:02:10]}  O-O {[%clk 0:00:53]} 15. Bxd6 {[%clk 0:02:07]}  Nc6 {[%clk 0:00:43]} 16. Bg3 {[%clk 0:02:03]}  Qh5 {[%clk 0:00:42]} 17. Nxd5 {[%clk 0:02:02]}  Rad8 {[%clk 0:00:30]} 18. h3 {[%clk 0:02:00]}  Nge5 {[%clk 0:00:13]} 19. Nf6+ {[%clk 0:01:55]}  Kh8 {[%clk 0:00:12]} 20. Qxd8 {[%clk 0:01:53]}  Rxd8 {[%clk 0:00:10]} 21. Nxh5 {[%clk 0:01:52]}  Nxc4 {[%clk 0:00:05]} 22. Nf6 {[%clk 0:01:46]}  Kg7 {[%clk 0:00:04]} 23. Ne4 {[%clk 0:01:39]}  Nd4 {[%clk 0:00:05]} 24. Nc3 {[%clk 0:01:37]}  Nxb2 {[%clk 0:00:03]} 25. Bxb7 {[%clk 0:01:36]}  b5 {[%clk 0:00:00]} 26. Rab1 {[%clk 0:01:28]} 1-0


[Site "https://www.chess.com"]

[Event "Titled Tuesday Blitz July 25 Late 2023"]
[White "Winslow, Elliott"]
[Black "Zhou, Qiyu"]
[WhiteFideId "2002523"]
[BlackFideId "505161"]
[WhiteElo "2192"]
[BlackElo "2330"]
[Result "0-1"]
[Round "10"]
[TimeControl "180+2"]
[Date "2023.07.25"]
[WhiteClock "0:00:00"]
[BlackClock "0:00:03"]
[Board "100"]

1. d4 {[%clk 0:03:00]}  Nf6 {[%clk 0:02:59]} 2. c4 {[%clk 0:03:00]}  e6 {[%clk 0:02:56]} 3. Nf3 {[%clk 0:02:58]}  b6 {[%clk 0:02:53]} 4. Nc3 {[%clk 0:02:54]}  Bb7 {[%clk 0:02:49]} 5. a3 {[%clk 0:02:54]}  Be7 {[%clk 0:02:40]} 6. d5 {[%clk 0:02:48]}  O-O {[%clk 0:02:37]} 7. e4 {[%clk 0:02:44]}  d6 {[%clk 0:02:33]} 8. h3 {[%clk 0:02:36]}  e5 {[%clk 0:02:32]} 9. g4 {[%clk 0:02:33]}  c6 {[%clk 0:02:27]} 10. Be2 {[%clk 0:02:30]}  cxd5 {[%clk 0:02:22]} 11. cxd5 {[%clk 0:02:30]}  Na6 {[%clk 0:02:04]} 12. b4 {[%clk 0:02:22]}  Nc7 {[%clk 0:01:58]} 13. Be3 {[%clk 0:02:17]}  Nd7 {[%clk 0:01:41]} 14. Qd2 {[%clk 0:02:09]}  a5 {[%clk 0:01:32]} 15. Rb1 {[%clk 0:01:55]}  axb4 {[%clk 0:01:17]} 16. axb4 {[%clk 0:01:54]}  Ba6 {[%clk 0:01:12]} 17. b5 {[%clk 0:01:48]}  Bb7 {[%clk 0:01:09]} 18. Na2 {[%clk 0:01:40]}  Nc5 {[%clk 0:01:04]} 19. Bxc5 {[%clk 0:01:27]}  bxc5 {[%clk 0:00:55]} 20. Nc3 {[%clk 0:01:18]}  Ra5 {[%clk 0:00:45]} 21. g5 {[%clk 0:01:03]}  Qa8 {[%clk 0:00:38]} 22. h4 {[%clk 0:01:01]}  Ra3 {[%clk 0:00:32]} 23. h5 {[%clk 0:00:56]}  Qa5 {[%clk 0:00:24]} 24. Nd1 {[%clk 0:00:56]}  Qa4 {[%clk 0:00:20]} 25. Bd3 {[%clk 0:00:41]}  Ra2 {[%clk 0:00:19]} 26. Rb2 {[%clk 0:00:32]}  Rxb2 {[%clk 0:00:13]} 27. Qxb2 {[%clk 0:00:31]}  Rb8 {[%clk 0:00:13]} 28. Nc3 {[%clk 0:00:28]}  Qa5 {[%clk 0:00:12]} 29. Ke2 {[%clk 0:00:28]}  Bc8 {[%clk 0:00:11]} 30. Ra1 {[%clk 0:00:26]}  Qb6 {[%clk 0:00:11]} 31. Na4 {[%clk 0:00:20]}  Qb7 {[%clk 0:00:10]} 32. b6 {[%clk 0:00:20]}  Na8 {[%clk 0:00:09]} 33. Qb5 {[%clk 0:00:17]}  Bd7 {[%clk 0:00:07]} 34. Qa5 {[%clk 0:00:14]}  Bxa4 {[%clk 0:00:06]} 35. Rxa4 {[%clk 0:00:11]}  Nxb6 {[%clk 0:00:06]} 36. Ra2 {[%clk 0:00:11]}  Ra8 {[%clk 0:00:06]} 37. Qd2 {[%clk 0:00:10]}  Rxa2 {[%clk 0:00:06]} 38. Qxa2 {[%clk 0:00:11]}  Qa8 {[%clk 0:00:03]} 39. Qb2 {[%clk 0:00:09]}  Qa5 {[%clk 0:00:03]} 40. g6 {[%clk 0:00:07]}  fxg6 {[%clk 0:00:03]} 41. hxg6 {[%clk 0:00:07]}  hxg6 {[%clk 0:00:04]} 42. Nd2 {[%clk 0:00:06]}  Bg5 {[%clk 0:00:02]} 43. Nc4 {[%clk 0:00:02]}  Nxc4 {[%clk 0:00:03]} 44. Bxc4 {[%clk 0:00:03]}  Qb4 {[%clk 0:00:03]} 45. Qxb4 {[%clk 0:00:00]}  cxb4 {[%clk 0:00:03]} 0-1


[Site "https://www.chess.com"]

[Event "Titled Tuesday Blitz July 25 Late 2023"]
[White "Oliveira, Tiago Batista"]
[Black "Yolosz"]
[WhiteFideId "2108291"]
[WhiteElo "2174"]
[BlackElo "2323"]
[Result "1/2-1/2"]
[Round "10"]
[TimeControl "180+2"]
[Date "2023.07.25"]
[WhiteClock "0:00:09"]
[BlackClock "0:00:06"]
[Board "101"]

1. d4 {[%clk 0:03:00]}  d5 {[%clk 0:02:58]} 2. c4 {[%clk 0:02:59]}  c6 {[%clk 0:02:57]} 3. g3 {[%clk 0:02:57]}  Nf6 {[%clk 0:02:54]} 4. Bg2 {[%clk 0:02:51]}  e6 {[%clk 0:02:46]} 5. Nf3 {[%clk 0:02:50]}  dxc4 {[%clk 0:02:40]} 6. O-O {[%clk 0:02:49]}  Nbd7 {[%clk 0:02:39]} 7. Nbd2 {[%clk 0:02:49]}  Bb4 {[%clk 0:02:26]} 8. Qc2 {[%clk 0:02:47]}  O-O {[%clk 0:02:16]} 9. Nxc4 {[%clk 0:02:46]}  a5 {[%clk 0:02:08]} 10. Rd1 {[%clk 0:02:45]}  b5 {[%clk 0:02:00]} 11. Nce5 {[%clk 0:02:42]}  Bb7 {[%clk 0:01:47]} 12. Nxc6 {[%clk 0:02:19]}  Qb6 {[%clk 0:01:37]} 13. Nxb4 {[%clk 0:02:13]}  axb4 {[%clk 0:01:37]} 14. Bd2 {[%clk 0:01:46]}  Rac8 {[%clk 0:01:17]} 15. Qb3 {[%clk 0:01:36]}  Rc4 {[%clk 0:01:16]} 16. Bxb4 {[%clk 0:01:27]}  Rfc8 {[%clk 0:01:15]} 17. e3 {[%clk 0:00:25]}  Nd5 {[%clk 0:00:58]} 18. Be1 {[%clk 0:00:18]}  h5 {[%clk 0:00:55]} 19. a3 {[%clk 0:00:16]}  g6 {[%clk 0:00:39]} 20. Nd2 {[%clk 0:00:16]}  Rc2 {[%clk 0:00:39]} 21. Ne4 {[%clk 0:00:15]}  Nxe3 {[%clk 0:00:35]} 22. Qxe3 {[%clk 0:00:12]}  Rxb2 {[%clk 0:00:33]} 23. Rac1 {[%clk 0:00:11]}  Rcc2 {[%clk 0:00:31]} 24. Rxc2 {[%clk 0:00:10]}  Rxc2 {[%clk 0:00:32]} 25. Rd2 {[%clk 0:00:10]}  Rc1 {[%clk 0:00:30]} 26. Re2 {[%clk 0:00:10]}  Qc7 {[%clk 0:00:28]} 27. Nd2 {[%clk 0:00:09]}  Nf6 {[%clk 0:00:22]} 28. Bxb7 {[%clk 0:00:08]}  Qxb7 {[%clk 0:00:22]} 29. Nf3 {[%clk 0:00:08]}  Qc7 {[%clk 0:00:20]} 30. Ne5 {[%clk 0:00:07]}  Nd5 {[%clk 0:00:20]} 31. Qf3 {[%clk 0:00:07]}  Nc3 {[%clk 0:00:17]} 32. Re3 {[%clk 0:00:06]}  Nd5 {[%clk 0:00:16]} 33. Rb3 {[%clk 0:00:05]}  Rxe1+ {[%clk 0:00:15]} 34. Kg2 {[%clk 0:00:06]}  b4 {[%clk 0:00:13]} 35. axb4 {[%clk 0:00:06]}  Rd1 {[%clk 0:00:12]} 36. b5 {[%clk 0:00:05]}  Rxd4 {[%clk 0:00:12]} 37. b6 {[%clk 0:00:04]}  Qb7 {[%clk 0:00:13]} 38. Rd3 {[%clk 0:00:02]}  Rxd3 {[%clk 0:00:13]} 39. Qxd3 {[%clk 0:00:02]}  Qxb6 {[%clk 0:00:13]} 40. Qf3 {[%clk 0:00:03]}  Qc7 {[%clk 0:00:13]} 41. Ng4 {[%clk 0:00:02]}  Qe7 {[%clk 0:00:12]} 42. Ne5 {[%clk 0:00:02]}  Kg7 {[%clk 0:00:11]} 43. Nd3 {[%clk 0:00:03]}  Qf6 {[%clk 0:00:11]} 44. Nf4 {[%clk 0:00:03]}  Nxf4+ {[%clk 0:00:11]} 45. gxf4 {[%clk 0:00:04]}  Qf5 {[%clk 0:00:11]} 46. Kg3 {[%clk 0:00:04]}  Kh6 {[%clk 0:00:10]} 47. Qe3 {[%clk 0:00:04]}  g5 {[%clk 0:00:10]} 48. f3 {[%clk 0:00:04]}  gxf4+ {[%clk 0:00:09]} 49. Qxf4+ {[%clk 0:00:05]}  Qxf4+ {[%clk 0:00:10]} 50. Kxf4 {[%clk 0:00:06]}  Kg6 {[%clk 0:00:10]} 51. Ke5 {[%clk 0:00:06]}  Kg5 {[%clk 0:00:10]} 52. f4+ {[%clk 0:00:06]}  Kg6 {[%clk 0:00:11]} 53. h4 {[%clk 0:00:07]}  Kg7 {[%clk 0:00:10]} 54. f5 {[%clk 0:00:07]}  exf5 {[%clk 0:00:06]} 55. Kxf5 {[%clk 0:00:07]}  Kf8 {[%clk 0:00:05]} 56. Kg5 {[%clk 0:00:07]}  Kg7 {[%clk 0:00:04]} 57. Kxh5 {[%clk 0:00:08]}  f6 {[%clk 0:00:05]} 58. Kg4 {[%clk 0:00:08]}  Kh6 {[%clk 0:00:05]} 59. h5 {[%clk 0:00:09]}  f5+ {[%clk 0:00:05]} 60. Kxf5 {[%clk 0:00:09]}  Kxh5 {[%clk 0:00:06]} 1/2-1/2


[Site "https://www.chess.com"]

[Event "Titled Tuesday Blitz July 25 Late 2023"]
[White "Kujawski, Adam"]
[Black "BeautiFullMindChess"]
[WhiteFideId "1100920"]
[WhiteElo "2319"]
[BlackElo "2156"]
[Result "1/2-1/2"]
[Round "10"]
[TimeControl "180+2"]
[Date "2023.07.25"]
[WhiteClock "0:00:09"]
[BlackClock "0:00:20"]
[Board "102"]

1. d4 {[%clk 0:02:59]}  Nf6 {[%clk 0:02:57]} 2. Bf4 {[%clk 0:02:58]}  d5 {[%clk 0:02:56]} 3. e3 {[%clk 0:02:58]}  e6 {[%clk 0:02:56]} 4. Nf3 {[%clk 0:02:58]}  Bd6 {[%clk 0:02:57]} 5. Bg3 {[%clk 0:02:58]}  O-O {[%clk 0:02:55]} 6. Bd3 {[%clk 0:02:57]}  c5 {[%clk 0:02:55]} 7. c3 {[%clk 0:02:57]}  Qc7 {[%clk 0:02:56]} 8. Nbd2 {[%clk 0:02:55]}  Nbd7 {[%clk 0:02:56]} 9. Qe2 {[%clk 0:02:51]}  e5 {[%clk 0:02:55]} 10. dxe5 {[%clk 0:02:51]}  Nxe5 {[%clk 0:02:56]} 11. Nxe5 {[%clk 0:02:51]}  Bxe5 {[%clk 0:02:57]} 12. Bxe5 {[%clk 0:02:50]}  Qxe5 {[%clk 0:02:58]} 13. Nf3 {[%clk 0:02:49]}  Qe7 {[%clk 0:02:57]} 14. h3 {[%clk 0:02:43]}  b6 {[%clk 0:02:58]} 15. O-O {[%clk 0:02:37]}  Bb7 {[%clk 0:02:57]} 16. Ba6 {[%clk 0:02:34]}  Bxa6 {[%clk 0:02:47]} 17. Qxa6 {[%clk 0:02:33]}  Rfd8 {[%clk 0:02:47]} 18. Rfd1 {[%clk 0:02:31]}  Rd6 {[%clk 0:02:46]} 19. a4 {[%clk 0:02:30]}  Rb8 {[%clk 0:02:36]} 20. Qd3 {[%clk 0:02:04]}  Ne4 {[%clk 0:02:11]} 21. c4 {[%clk 0:01:51]}  Rbd8 {[%clk 0:01:58]} 22. cxd5 {[%clk 0:01:48]}  Rxd5 {[%clk 0:01:59]} 23. Qxd5 {[%clk 0:01:48]}  Rxd5 {[%clk 0:01:59]} 24. Rxd5 {[%clk 0:01:49]}  h6 {[%clk 0:01:43]} 25. Re5 {[%clk 0:01:42]}  Qb7 {[%clk 0:01:41]} 26. Rd1 {[%clk 0:01:35]}  Nf6 {[%clk 0:01:40]} 27. Nh4 {[%clk 0:00:52]}  g6 {[%clk 0:01:24]} 28. f4 {[%clk 0:00:29]}  Qc6 {[%clk 0:01:18]} 29. b3 {[%clk 0:00:22]}  c4 {[%clk 0:01:17]} 30. bxc4 {[%clk 0:00:20]}  Qxc4 {[%clk 0:01:15]} 31. Rd8+ {[%clk 0:00:20]}  Kg7 {[%clk 0:01:15]} 32. Nf3 {[%clk 0:00:18]}  Qxa4 {[%clk 0:01:05]} 33. Re7 {[%clk 0:00:15]}  Qa3 {[%clk 0:01:03]} 34. Rc7 {[%clk 0:00:14]}  Qxe3+ {[%clk 0:01:00]} 35. Kh1 {[%clk 0:00:13]}  Qxf4 {[%clk 0:00:55]} 36. Rxa7 {[%clk 0:00:13]}  Ne4 {[%clk 0:00:48]} 37. Rc8 {[%clk 0:00:11]}  Ng3+ {[%clk 0:00:46]} 38. Kg1 {[%clk 0:00:11]}  Qe3+ {[%clk 0:00:45]} 39. Kh2 {[%clk 0:00:10]}  Nf1+ {[%clk 0:00:45]} 40. Kh1 {[%clk 0:00:10]}  Qf2 {[%clk 0:00:41]} 41. Rcc7 {[%clk 0:00:08]}  Ng3+ {[%clk 0:00:38]} 42. Kh2 {[%clk 0:00:09]}  Nf1+ {[%clk 0:00:34]} 43. Kh1 {[%clk 0:00:09]}  Ng3+ {[%clk 0:00:27]} 44. Kh2 {[%clk 0:00:09]}  Nf1+ {[%clk 0:00:20]} 45. Kh1 {[%clk 0:00:09]} 1/2-1/2


[Site "https://www.chess.com"]